[Event "Kragero Resort Chess A 2019"]
[Site "Kragero"]
[Date "2019.02.20"]
[Round "1.6"]
[White "Saltvedt, Martin"]
[Black "Notkevich, Benjamin Arvola"]
[Result "0-1"]
[ECO "A80"]
[WhiteElo "2095"]
[BlackElo "2498"]
[Annotator "ChessBase"]
[PlyCount "54"]
[EventDate "2019.02.20"]
[EventType "swiss"]
[EventCountry "NOR"]
[SourceTitle "playchess.com"]
[Source "ChessBase"]
[SourceQuality "1"]
[TimeControl "5400+30"]

1. d4 {[%emt 0:00:00]} f5 {[%emt 0:00:00]} 2. Bg5 {[%emt 0:00:28]} g6 {[%emt 0:02:32]} 3. Nc3 {[%emt 0:09:06]} d5 {[%emt 0:11:58]} 4. h4 {[%emt 0:03:57]} Bg7 {[%emt 0:02:30]} 5. e3 {[%emt 0:16:52]} c5 {[%emt 0:07:23]} 6. Bb5+ {[%emt 0:20:25]} Bd7 {[%emt 0:07:30]} 7. Bxd7+ {[%emt 0:01:05]} Qxd7 {[%emt 0:00:07]} 8. Qf3 {[%emt 0:01:08]} e6 {[%emt 0:13:54]} 9. O-O-O {[%emt 0:04:15]} Nc6 {[%emt 0:00:19]} 10. Nge2 {[%emt 0:00:57]} Nf6 {[%emt 0:06:29]} 11. Bxf6 {[%emt 0:02:25]} Bxf6 {[%emt 0:00:52]} 12. g4 {[%emt 0:00:20]} O-O-O {[%emt 0:00:51]} 13. dxc5 {[%emt 0:02:37]} Ne5 {[%emt 0:03:04]} 14. Qg3 {[%emt 0:04:12]} Nxg4 {[%emt 0:01:02]} 15. Nd4 {[%emt 0:00:32]} Be5 {[%emt 0:03:53]} 16. f4 {[%emt 0:02:13]} Bf6 {[%emt 0:00:55]} 17. Ncb5 {[%emt 0:05:53]} Kb8 {[%emt 0:01:34]} 18. Rd3 {[%emt 0:03:22]} Rc8 {[%emt 0:06:17]} 19. b4 {[%emt 0:13:09]} a5 {[%emt 0:05:55]} 20. Nd6 {[%emt 0:01:39]} axb4 {[%emt 0:00:20]} 21. Nxc8 {[%emt 0:01:11]} Rxc8 {[%emt 0:00:06]} 22. Rb3 {[%emt 0:00:49]} Rxc5 {[%emt 0:02:20]} 23. Rxb4 {[%emt 0:00:50]} Qc8 {[%emt 0:02:05]} 24. Rb2 {[%emt 0:00:31]} Rc3 {[%emt 0:00:16]} 25. Rd1 {[%emt 0:01:30]} Nxe3 {[%emt 0:00:24]} 26. Qf2 {[%emt 0:01:41]} Nxd1 {[%emt 0:01:22]} 27. Kxd1 {[%emt 0:00:08]} Qc5 {[%emt 0:00:18]} 0-1

[Event "Kragero Resort Chess A 2019"]
[Site "Kragero"]
[Date "2019.02.20"]
[Round "1.10"]
[White "Kvaloy, Aksel Bu"]
[Black "Holm, Kristian Stuvik"]
[Result "0-1"]
[ECO "B30"]
[WhiteElo "2066"]
[BlackElo "2456"]
[Annotator "ChessBase"]
[PlyCount "146"]
[EventDate "2019.02.20"]
[EventType "swiss"]
[EventCountry "NOR"]
[SourceTitle "playchess.com"]
[Source "ChessBase"]
[SourceQuality "1"]
[TimeControl "5400+30"]

1. e4 {[%emt 0:00:00]} c5 {[%emt 0:00:00]} 2. Nf3 {[%emt 0:00:00]} Nc6 {[%emt 0:00:00]} 3. Bb5 {[%emt 0:00:12]} Nf6 {[%emt 0:01:24]} 4. Nc3 {[%emt 0:00:43]} Qc7 {[%emt 0:00:33]} 5. O-O {[%emt 0:02:22]} Nd4 {[%emt 0:01:14]} 6. Re1 {[%emt 0:06:11]} e6 {[%emt 0:03:21]} 7. e5 {[%emt 0:05:01]} Ng8 {[%emt 0:00:29]} 8. Bf1 {[%emt 0:02:22]} a6 {[%emt 0:04:53]} 9. d3 {[%emt 0:06:10]} Ne7 {[%emt 0:00:41]} 10. Bf4 {[%emt 0:01:30]} Ng6 {[%emt 0:06:01]} 11. Bg3 {[%emt 0:00:12]} Nf5 {[%emt 0:03:28]} 12. Ne4 {[%emt 0:07:39]} Nxg3 {[%emt 0:05:18]} 13. Nxg3 {[%emt 0:00:27]} Be7 {[%emt 0:01:57]} 14. c3 {[%emt 0:09:05]} d5 {[%emt 0:03:51]} 15. h4 {[%emt 0:11:30]} Bd7 {[%emt 0:06:36]} 16. h5 {[%emt 0:01:28]} Nf8 {[%emt 0:00:15]} 17. c4 {[%emt 0:03:07]} Bc6 {[%emt 0:01:04]} 18. Nd2 {[%emt 0:12:07]} Nd7 {[%emt 0:03:05]} 19. f4 {[%emt 0:02:59]} O-O-O {[%emt 0:00:51]} 20. Qe2 {[%emt 0:14:47]} Kb8 {[%emt 0:02:06]} 21. Nf3 {[%emt 0:00:50]} f5 {[%emt 0:04:50]} 22. Nh1 {[%emt 0:10:13]} g6 {[%emt 0:02:57]} 23. Nf2 {[%emt 0:01:06]} gxh5 {[%emt 0:00:20]} 24. Nh3 {[%emt 0:00:06]} h6 {[%emt 0:01:00]} 25. Kh1 {[%emt 0:00:58]} Rhg8 {[%emt 0:02:11]} 26. a3 {[%emt 0:00:35]} Rg3 {[%emt 0:02:07]} 27. Qf2 {[%emt 0:00:47]} h4 {[%emt 0:00:08]} 28. Be2 {[%emt 0:00:35]} Rdg8 {[%emt 0:00:25]} 29. Rg1 {[%emt 0:00:21]} Qb6 {[%emt 0:01:45]} 30. Rab1 {[%emt 0:00:49]} dxc4 {[%emt 0:01:15]} 31. dxc4 {[%emt 0:00:03]} Qb3 {[%emt 0:00:31]} 32. Rgc1 {[%emt 0:01:04]} Be4 {[%emt 0:03:31]} 33. Bd1 {[%emt 0:00:33]} Qb6 {[%emt 0:00:59]} 34. Ra1 {[%emt 0:00:09]} Ka7 {[%emt 0:04:22]} 35. b3 {[%emt 0:00:44]} Nb8 {[%emt 0:01:15]} 36. Ra2 {[%emt 0:00:32]} Nc6 {[%emt 0:00:16]} 37. Rd2 {[%emt 0:00:02]} Nd4 {[%emt 0:00:45]} 38. Rc3 {[%emt 0:00:59]} Bxf3 {[%emt 0:03:00]} 39. Bxf3 {[%emt 0:00:10]} Nxf3 {[%emt 0:00:07]} 40. Rxf3 {[%emt 0:00:07]} Rxf3 {[%emt 0:00:08]} 41. Qxf3 {[%emt 0:00:48]} Rg3 {[%emt 0:00:08]} 42. Qd1 {[%emt 0:00:24]} Rxb3 {[%emt 0:04:19]} 43. Kh2 {[%emt 0:00:32]} Rg3 {[%emt 0:01:18]} 44. Qg1 {[%emt 0:01:02]} Qc6 {[%emt 0:01:15]} 45. Qf2 {[%emt 0:00:26]} Rxa3 {[%emt 0:01:10]} 46. Qe2 {[%emt 0:00:38]} Qe8 {[%emt 0:01:29]} 47. Qf2 {[%emt 0:00:32]} Kb8 {[%emt 0:00:50]} 48. Qg1 {[%emt 0:00:25]} Kc8 {[%emt 0:00:37]} 49. Qd1 {[%emt 0:00:34]} Qg6 {[%emt 0:01:58]} 50. Rd3 {[%emt 0:00:32]} Rxd3 {[%emt 0:00:09]} 51. Qxd3 {[%emt 0:00:02]} Qg3+ {[%emt 0:00:09]} 52. Qxg3 {[%emt 0:00:14]} hxg3+ {[%emt 0:00:05]} 53. Kxg3 {[%emt 0:00:07]} b5 {[%emt 0:00:11]} 54. Kf3 {[%emt 0:00:41]} Kc7 {[%emt 0:00:11]} 55. Ke3 {[%emt 0:00:12]} Kb6 {[%emt 0:00:09]} 56. Kd3 {[%emt 0:00:32]} Ka5 {[%emt 0:00:16]} 57. Kc3 {[%emt 0:00:42]} Ka4 {[%emt 0:00:05]} 58. Nf2 {[%emt 0:00:09]} Ka3 {[%emt 0:00:19]} 59. Nd3 {[%emt 0:00:29]} h5 {[%emt 0:01:29]} 60. g3 {[%emt 0:00:26]} b4+ {[%emt 0:01:34]} 61. Kc2 {[%emt 0:00:03]} b3+ {[%emt 0:01:25]} 62. Kb1 {[%emt 0:01:26]} a5 {[%emt 0:00:18]} 63. Ka1 {[%emt 0:00:14]} b2+ {[%emt 0:00:31]} 64. Nxb2 {[%emt 0:01:13]} Kb3 {[%emt 0:00:05]} 65. Kb1 {[%emt 0:00:16]} a4 {[%emt 0:00:09]} 66. Nd3 {[%emt 0:00:59]} Kxc4 {[%emt 0:00:08]} 67. Kc2 {[%emt 0:00:08]} a3 {[%emt 0:00:13]} 68. Ne1 {[%emt 0:00:10]} Kd4 {[%emt 0:00:10]} 69. Nf3+ {[%emt 0:00:55]} Ke3 {[%emt 0:00:11]} 70. Ng5 {[%emt 0:00:25]} c4 {[%emt 0:01:11]} 71. Nxe6 {[%emt 0:00:50]} a2 {[%emt 0:00:07]} 72. Kb2 {[%emt 0:00:04]} c3+ {[%emt 0:00:05]} 73. Kxa2 {[%emt 0:00:12]} c2 {[%emt 0:00:06]} 0-1

[Event "Kragero Resort Chess A 2019"]
[Site "Kragero"]
[Date "2019.02.20"]
[Round "1.11"]
[White "Beerdsen, Thomas"]
[Black "Fossan, Aleksander"]
[Result "1-0"]
[ECO "B27"]
[WhiteElo "2454"]
[BlackElo "2040"]
[Annotator "ChessBase"]
[PlyCount "111"]
[EventDate "2019.02.20"]
[EventType "swiss"]
[EventCountry "NOR"]
[SourceTitle "playchess.com"]
[Source "ChessBase"]
[SourceQuality "1"]
[TimeControl "5400+30"]

1. e4 {[%emt 0:00:00]} c5 {[%emt 0:00:00]} 2. Nf3 {[%emt 0:00:00]} g6 {[%emt 0:00:00]} 3. d4 {[%emt 0:00:00]} cxd4 {[%emt 0:00:00]} 4. Qxd4 {[%emt 0:00:00]} Nf6 {[%emt 0:00:09]} 5. Nc3 {[%emt 0:00:00]} Nc6 {[%emt 0:00:17]} 6. Qa4 {[%emt 0:00:00]} d6 {[%emt 0:00:27]} 7. e5 {[%emt 0:00:05]} dxe5 {[%emt 0:00:04]} 8. Nxe5 {[%emt 0:00:04]} Bd7 {[%emt 0:00:28]} 9. Nxd7 {[%emt 0:00:06]} Qxd7 {[%emt 0:00:13]} 10. Be3 {[%emt 0:00:04]} Bg7 {[%emt 0:03:51]} 11. Rd1 {[%emt 0:00:05]} Qc8 {[%emt 0:00:11]} 12. Be2 {[%emt 0:00:12]} O-O {[%emt 0:00:26]} 13. O-O {[%emt 0:00:40]} a6 {[%emt 0:02:00]} 14. Rfe1 {[%emt 0:00:13]} b5 {[%emt 0:03:19]} 15. Qh4 {[%emt 0:00:23]} Qc7 {[%emt 0:03:09]} 16. Bf4 {[%emt 0:06:59]} Qb6 {[%emt 0:04:50]} 17. Bf3 {[%emt 0:03:26]} Rad8 {[%emt 0:04:36]} 18. Be3 {[%emt 0:06:43]} Qc7 {[%emt 0:00:50]} 19. Qg3 {[%emt 0:02:06]} Qxg3 {[%emt 0:08:56]} 20. hxg3 {[%emt 0:00:07]} Ne5 {[%emt 0:10:42]} 21. Bb7 {[%emt 0:03:46]} b4 {[%emt 0:05:20]} 22. Na4 {[%emt 0:00:40]} Rxd1 {[%emt 0:11:38]} 23. Rxd1 {[%emt 0:00:09]} a5 {[%emt 0:00:43]} 24. Bc5 {[%emt 0:05:19]} Re8 {[%emt 0:03:20]} 25. b3 {[%emt 0:00:49]} e6 {[%emt 0:06:16]} 26. Bb6 {[%emt 0:01:06]} Bf8 {[%emt 0:07:52]} 27. Bxa5 {[%emt 0:04:06]} Rb8 {[%emt 0:00:34]} 28. Bc7 {[%emt 0:00:13]} Rxb7 {[%emt 0:00:31]} 29. Bxe5 {[%emt 0:00:06]} Nd5 {[%emt 0:00:47]} 30. c4 {[%emt 0:00:31]} bxc3 {[%emt 0:02:28]} 31. Nxc3 {[%emt 0:00:06]} Nxc3 {[%emt 0:05:05]} 32. Bxc3 {[%emt 0:00:05]} Be7 {[%emt 0:00:34]} 33. Rb1 {[%emt 0:00:57]} Rc7 {[%emt 0:00:51]} 34. Be1 {[%emt 0:00:25]} Ba3 {[%emt 0:02:06]} 35. b4 {[%emt 0:02:56]} Rc2 {[%emt 0:01:17]} 36. b5 {[%emt 0:00:04]} Rxa2 {[%emt 0:01:23]} 37. b6 {[%emt 0:00:05]} Rb2 {[%emt 0:00:20]} 38. Rxb2 {[%emt 0:00:04]} Bxb2 {[%emt 0:00:05]} 39. b7 {[%emt 0:00:11]} Be5 {[%emt 0:00:05]} 40. Bc3 {[%emt 0:00:09]} Bb8 {[%emt 0:00:14]} 41. f4 {[%emt 0:00:05]} Kf8 {[%emt 0:00:57]} 42. Be5 {[%emt 0:00:06]} Ba7+ {[%emt 0:00:06]} 43. Kf1 {[%emt 0:00:06]} Ke7 {[%emt 0:00:21]} 44. b8=R {[%emt 0:00:06]} Bxb8 {[%emt 0:00:07]} 45. Bxb8 {[%emt 0:00:06]} h5 {[%emt 0:00:36]} 46. Be5 {[%emt 0:00:08]} Kd7 {[%emt 0:00:18]} 47. Ke2 {[%emt 0:00:06]} Kc6 {[%emt 0:00:06]} 48. Kd3 {[%emt 0:00:11]} Kd5 {[%emt 0:00:10]} 49. Bf6 {[%emt 0:00:11]} Kc5 {[%emt 0:00:18]} 50. Ke4 {[%emt 0:00:06]} Kc4 {[%emt 0:00:27]} 51. Ba1 {[%emt 0:01:23]} f5+ {[%emt 0:01:19]} 52. Ke5 {[%emt 0:00:05]} Kd3 {[%emt 0:00:08]} 53. Kf6 {[%emt 0:00:13]} Ke2 {[%emt 0:00:09]} 54. Kxg6 {[%emt 0:00:07]} Kf2 {[%emt 0:00:07]} 55. Kxh5 {[%emt 0:00:06]} Kxg3 {[%emt 0:00:11]} 56. Be5 {[%emt 0:00:04]} 1-0

[Event "Kragero Resort Chess A 2019"]
[Site "Kragero"]
[Date "2019.02.20"]
[Round "1.12"]
[White "Flasen, Aleksander"]
[Black "Thorfinnsson, Bragi"]
[Result "0-1"]
[ECO "B29"]
[WhiteElo "2036"]
[BlackElo "2438"]
[Annotator "NA RC"]
[PlyCount "100"]
[EventDate "2019.02.20"]
[EventType "swiss"]
[EventCountry "NOR"]
[SourceTitle "playchess.com"]
[Source "ChessBase"]
[SourceQuality "1"]
[TimeControl "5400+30"]

1. e4 {[%emt 0:00:00]} c5 {[%emt 0:01:55]} 2. Nf3 {[%emt 0:00:00]} Nf6 {[%emt 0:00:31]} 3. e5 {[%emt 0:02:24]} Nd5 {[%emt 0:00:31]} 4. Nc3 {[%emt 0:00:57]} e6 {[%emt 0:01:52]} 5. Nxd5 {[%emt 0:00:30]} exd5 {[%emt 0:00:30]} 6. d4 {[%emt 0:07:01]} Nc6 {[%emt 0:00:22]} 7. dxc5 {[%emt 0:07:06]} Bxc5 {[%emt 0:02:51]} 8. Be2 {[%emt 0:15:33]} d6 {[%emt 0:07:16]} 9. exd6 {[%emt 0:05:47]} Qxd6 {[%emt 0:01:03]} 10. O-O {[%emt 0:01:44]} O-O {[%emt 0:00:47]} 11. a3 {[%emt 0:06:26]} a5 {[%emt 0:01:09]} 12. b3 {[%emt 0:01:41]} Re8 {[%emt 0:07:43]} 13. Bb2 {[%emt 0:02:04]} Bg4 {[%emt 0:00:44]} 14. Re1 {[%emt 0:08:11]} Rad8 {[%emt 0:05:53]} 15. Qd2 {[%emt 0:07:56]} h6 {[%emt 0:03:14]} 16. Nh4 {[%emt 0:03:32]} Rxe2 {[%emt 0:07:28]} 17. Rxe2 {[%emt 0:00:14]} Bxe2 {[%emt 0:00:20]} 18. Qxe2 {[%emt 0:00:07]} d4 {[%emt 0:00:14]} 19. Re1 {[%emt 0:13:17]} d3 {[%emt 0:05:22]} 20. Qg4 {[%emt 0:02:11]} Nd4 {[%emt 0:01:43]} 21. cxd3 {[%emt 0:01:39]} Bxa3 {[%emt 0:00:53]} 22. Ba1 {[%emt 0:00:29]} Bb4 {[%emt 0:02:45]} 23. Rc1 {[%emt 0:07:55]} Qe6 {[%emt 0:02:22]} 24. Qxe6 {[%emt 0:01:36]} Nxe6 {[%emt 0:00:38]} 25. Rd1 {[%emt 0:00:18]} Nc5 {[%emt 0:00:40]} 26. Nf5 {[%emt 0:01:49]} f6 {[%emt 0:00:08]} 27. Nd4 {[%emt 0:00:55]} Kf7 {[%emt 0:00:50]} 28. Kf1 {[%emt 0:00:43]} Re8 {[%emt 0:01:37]} 29. Nf3 {[%emt 0:01:51]} Nxb3 {[%emt 0:00:42]} 30. Bb2 {[%emt 0:00:10]} Rc8 {[%emt 0:00:52]} 31. Nd4 {[%emt 0:00:51]} Nxd4 {[%emt 0:01:04]} 32. Bxd4 {[%emt 0:00:05]} b5 {[%emt 0:01:01]} 33. Ke2 {[%emt 0:00:48]} Ke6 {[%emt 0:00:59]} 34. Rb1 {[%emt 0:00:27]} Rc2+ {[%emt 0:00:36]} 35. Kf3 {[%emt 0:00:37]} Kd5 {[%emt 0:01:02]} 36. Be3 {[%emt 0:00:25]} Rc3 {[%emt 0:02:34]} 37. Ke2 {[%emt 0:00:37]} Kc6 {[%emt 0:02:31]} 38. d4 {[%emt 0:00:26]} Kd5 {[%emt 0:00:29]} 39. Rb2 {[%emt 0:00:36]} Rc4 {[%emt 0:01:51]} 40. Kd3 {[%emt 0:00:23]} f5 {[%emt 0:00:31]} 41. g3 {[%emt 0:00:19]} a4 {[%emt 0:01:58]} 42. h4 {[%emt 0:00:46]} a3 {[%emt 0:01:43]} 43. Rb1 {[%emt 0:00:25]} a2 {[%emt 0:01:26]} 44. Ra1 {[%emt 0:00:05]} Rc3+ {[%emt 0:00:05]} 45. Ke2 {[%emt 0:00:07]} Ra3 {[%emt 0:00:14]} 46. Bc1 {[%emt 0:00:33]} Bc3 {[%emt 0:00:36]} 47. Bxa3 {[%emt 0:01:16]} Bxa1 {[%emt 0:00:06]} 48. Kd3 {[%emt 0:00:10]} Bxd4 {[%emt 0:00:14]} 49. Bf8 {[%emt 0:00:16]} a1=Q {[%emt 0:00:29]} 50. Bxg7 {[%emt 0:00:08]} Qd1# {[%emt 0:00:16]} 0-1

[Event "Kragero Resort Chess A 2019"]
[Site "Kragero"]
[Date "2019.02.20"]
[Round "1.13"]
[White "Mikalsen, Erlend"]
[Black "Holand, Per Fredrik"]
[Result "1-0"]
[ECO "B66"]
[WhiteElo "2406"]
[BlackElo "2024"]
[Annotator "NA"]
[PlyCount "41"]
[EventDate "2019.02.20"]
[EventType "swiss"]
[EventCountry "NOR"]
[SourceTitle "playchess.com"]
[Source "ChessBase"]
[SourceQuality "1"]
[TimeControl "5400+30"]

1. e4 {[%emt 0:00:00]} c5 {[%emt 0:00:00]} 2. Nf3 {[%emt 0:00:00]} Nc6 {[%emt 0:00:00]} 3. d4 {[%emt 0:00:00]} cxd4 {[%emt 0:00:00]} 4. Nxd4 {[%emt 0:00:00]} Nf6 {[%emt 0:00:00]} 5. Nc3 {[%emt 0:00:00]} d6 {[%emt 0:00:04]} 6. Bg5 {[%emt 0:00:00]} e6 {[%emt 0:00:07]} 7. Qd2 {[%emt 0:00:00]} a6 {[%emt 0:00:07]} 8. O-O-O {[%emt 0:00:02]} h6 {[%emt 0:00:11]} 9. Nxc6 {[%emt 0:00:05]} bxc6 {[%emt 0:00:14]} 10. Bf4 {[%emt 0:00:04]} d5 {[%emt 0:02:15]} 11. Qe3 {[%emt 0:01:54]} Qa5 {[%emt 0:11:26]} 12. Be2 {[%emt 0:17:19]} Bb4 {[%emt 0:34:22]} 13. Be5 {[%emt 0:01:38]} dxe4 {[%emt 0:02:15]} 14. Qg3 {[%emt 0:05:41]} Nd5 {[%emt 0:05:38]} 15. Qxg7 {[%emt 0:02:26]} Rf8 {[%emt 0:00:57]} 16. Nxe4 {[%emt 0:00:31]} Qxa2 {[%emt 0:06:35]} 17. c4 {[%emt 0:00:18]} Bd7 {[%emt 0:07:09]} 18. Nd6+ {[%emt 0:04:42]} Bxd6 {[%emt 0:08:22]} 19. Bxd6 {[%emt 0:00:08]} Ne7 {[%emt 0:00:51]} 20. Qf6 {[%emt 0:00:23]} Ng6 {[%emt 0:01:29]} 21. Bd3 {[%emt 0:01:57]} 1-0

[Event "Kragero Resort Chess A 2019"]
[Site "Kragero"]
[Date "2019.02.20"]
[Round "1.14"]
[White "Holleland, Sigve"]
[Black "Kjartansson, Gudmundur"]
[Result "0-1"]
[ECO "D02"]
[WhiteElo "2009"]
[BlackElo "2403"]
[Annotator "NA"]
[PlyCount "48"]
[EventDate "2019.02.20"]
[EventType "swiss"]
[EventCountry "NOR"]
[SourceTitle "playchess.com"]
[Source "ChessBase"]
[SourceQuality "1"]
[TimeControl "5400+30"]

1. d4 {[%emt 0:00:00]} d5 {[%emt 0:00:19]} 2. Bf4 {[%emt 0:00:00]} Nf6 {[%emt 0:00:52]} 3. e3 {[%emt 0:00:00]} e6 {[%emt 0:00:10]} 4. Be2 {[%emt 0:01:23]} c5 {[%emt 0:01:45]} 5. c3 {[%emt 0:00:37]} Nc6 {[%emt 0:00:46]} 6. Nf3 {[%emt 0:00:43]} Bd6 {[%emt 0:02:33]} 7. Bg3 {[%emt 0:00:40]} Ne4 {[%emt 0:03:04]} 8. Bh4 {[%emt 0:06:06]} Qb6 {[%emt 0:08:29]} 9. Qb3 {[%emt 0:02:51]} Qc7 {[%emt 0:03:43]} 10. Nbd2 {[%emt 0:03:29]} c4 {[%emt 0:00:53]} 11. Qc2 {[%emt 0:00:05]} f5 {[%emt 0:00:34]} 12. Bg3 {[%emt 0:16:59]} O-O {[%emt 0:06:34]} 13. Nxe4 {[%emt 0:04:27]} fxe4 {[%emt 0:00:17]} 14. Nd2 {[%emt 0:00:10]} e5 {[%emt 0:08:13]} 15. f3 {[%emt 0:07:54]} exd4 {[%emt 0:02:42]} 16. Bxd6 {[%emt 0:00:09]} Qxd6 {[%emt 0:00:06]} 17. exd4 {[%emt 0:00:38]} Qg6 {[%emt 0:11:07]} 18. fxe4 {[%emt 0:07:49]} Qxg2 {[%emt 0:00:20]} 19. Rf1 {[%emt 0:00:05]} Bg4 {[%emt 0:01:33]} 20. Rxf8+ {[%emt 0:04:48]} Rxf8 {[%emt 0:00:18]} 21. Bxg4 {[%emt 0:00:07]} Qg1+ {[%emt 0:01:21]} 22. Ke2 {[%emt 0:00:11]} Rf2+ {[%emt 0:00:45]} 23. Ke3 {[%emt 0:00:10]} Rf1+ {[%emt 0:00:07]} 24. Ke2 {[%emt 0:00:16]} Qf2# {[%emt 0:00:05]} 0-1

[Event "Kragero Resort Chess A 2019"]
[Site "Kragero"]
[Date "2019.02.20"]
[Round "1.15"]
[White "Getz, Nicolai"]
[Black "Stray, Gunnar"]
[Result "1-0"]
[ECO "B41"]
[WhiteElo "2398"]
[BlackElo "1994"]
[Annotator "NA"]
[PlyCount "33"]
[EventDate "2019.02.20"]
[EventType "swiss"]
[EventCountry "NOR"]
[SourceTitle "playchess.com"]
[Source "ChessBase"]
[SourceQuality "1"]
[TimeControl "5400+30"]

1. e4 {[%emt 0:00:00]} c5 {[%emt 0:00:00]} 2. Nf3 {[%emt 0:00:00]} e6 {[%emt 0:00:00]} 3. d4 {[%emt 0:00:00]} cxd4 {[%emt 0:00:00]} 4. Nxd4 {[%emt 0:00:00]} a6 {[%emt 0:00:01]} 5. c4 {[%emt 0:00:00]} Qc7 {[%emt 0:00:15]} 6. Nc3 {[%emt 0:00:03]} Nc6 {[%emt 0:00:21]} 7. Be2 {[%emt 0:02:01]} Nf6 {[%emt 0:00:45]} 8. O-O {[%emt 0:05:00]} Nxd4 {[%emt 0:06:16]} 9. Qxd4 {[%emt 0:00:07]} Bd6 {[%emt 0:03:51]} 10. Kh1 {[%emt 0:06:47]} Bf4 {[%emt 0:02:43]} 11. Bxf4 {[%emt 0:02:09]} Qxf4 {[%emt 0:00:09]} 12. g3 {[%emt 0:00:15]} Qc7 {[%emt 0:12:12]} 13. e5 {[%emt 0:00:29]} Ng8 {[%emt 0:01:58]} 14. Ne4 {[%emt 0:00:19]} Ke7 {[%emt 0:05:55]} 15. Nd6 {[%emt 0:03:02]} Qc6+ {[%emt 0:05:17]} 16. Kg1 {[%emt 0:01:19]} b6 {[%emt 0:02:46]} 17. Qf4 {[%emt 0:00:21]} 1-0

[Event "Kragero Resort Chess A 2019"]
[Site "Kragero"]
[Date "2019.02.20"]
[Round "1.16"]
[White "Sebastian, Andreas"]
[Black "Heimisson, Hilmir Freyr"]
[Result "0-1"]
[ECO "D00"]
[WhiteElo "1962"]
[BlackElo "2394"]
[Annotator "NA"]
[PlyCount "88"]
[EventDate "2019.02.20"]
[EventType "swiss"]
[EventCountry "NOR"]
[SourceTitle "playchess.com"]
[Source "ChessBase"]
[SourceQuality "1"]
[TimeControl "5400+30"]

1. d4 {[%emt 0:00:00]} Nf6 {[%emt 0:00:21]} 2. Nc3 {[%emt 0:00:00]} d5 {[%emt 0:00:08]} 3. Bf4 {[%emt 0:00:00]} c5 {[%emt 0:00:42]} 4. e4 {[%emt 0:00:08]} Nxe4 {[%emt 0:08:43]} 5. Nxe4 {[%emt 0:01:18]} dxe4 {[%emt 0:00:08]} 6. d5 {[%emt 0:00:19]} Qb6 {[%emt 0:05:56]} 7. Ne2 {[%emt 0:05:10]} Nd7 {[%emt 0:13:38]} 8. Nc3 {[%emt 0:02:08]} a6 {[%emt 0:00:01]} 9. Qd2 {[%emt 0:06:25]} Qxb2 {[%emt 0:10:00]} 10. Rb1 {[%emt 0:00:49]} Qa3 {[%emt 0:00:03]} 11. Bc7 {[%emt 0:29:20]} c4 {[%emt 0:01:34]} 12. Nxe4 {[%emt 0:04:07]} Qxa2 {[%emt 0:08:06]} 13. Nc3 {[%emt 0:02:02]} Qa3 {[%emt 0:00:08]} 14. Bf4 {[%emt 0:09:24]} g6 {[%emt 0:17:43]} 15. Qd4 {[%emt 0:06:57]} Nf6 {[%emt 0:01:23]} 16. d6 {[%emt 0:01:24]} Bg7 {[%emt 0:00:56]} 17. Be5 {[%emt 0:08:56]} O-O {[%emt 0:02:04]} 18. Nd5 {[%emt 0:02:35]} Qa5+ {[%emt 0:01:25]} 19. Nc3 {[%emt 0:01:18]} Re8 {[%emt 0:01:39]} 20. Be2 {[%emt 0:00:41]} Nh5 {[%emt 0:02:56]} 21. Bxg7 {[%emt 0:00:19]} Nxg7 {[%emt 0:00:06]} 22. O-O {[%emt 0:01:21]} exd6 {[%emt 0:00:37]} 23. Bxc4 {[%emt 0:00:32]} Nf5 {[%emt 0:01:54]} 24. Qd5 {[%emt 0:04:06]} Qxd5 {[%emt 0:01:21]} 25. Nxd5 {[%emt 0:00:35]} Rd8 {[%emt 0:00:39]} 26. Nb6 {[%emt 0:02:37]} Rb8 {[%emt 0:00:35]} 27. Rfe1 {[%emt 0:00:14]} Kf8 {[%emt 0:00:49]} 28. Re4 {[%emt 0:01:14]} Ng7 {[%emt 0:07:59]} 29. Nd5 {[%emt 0:03:44]} Be6 {[%emt 0:01:26]} 30. Rb6 {[%emt 0:01:39]} Rbc8 {[%emt 0:02:09]} 31. Bb3 {[%emt 0:01:24]} Bxd5 {[%emt 0:03:07]} 32. Bxd5 {[%emt 0:00:01]} Rxc2 {[%emt 0:00:09]} 33. g3 {[%emt 0:00:08]} Rc5 {[%emt 0:00:49]} 34. Bxb7 {[%emt 0:00:21]} d5 {[%emt 0:01:32]} 35. Re1 {[%emt 0:00:15]} a5 {[%emt 0:00:34]} 36. Rd1 {[%emt 0:01:02]} Rb8 {[%emt 0:01:11]} 37. Rc6 {[%emt 0:00:26]} Rb5 {[%emt 0:00:23]} 38. Ba6 {[%emt 0:01:04]} Rb1 {[%emt 0:00:16]} 39. Rxb1 {[%emt 0:00:42]} Rxb1+ {[%emt 0:00:03]} 40. Kg2 {[%emt 0:00:09]} d4 {[%emt 0:02:56]} 41. Rc5 {[%emt 0:01:23]} Ra1 {[%emt 0:02:01]} 42. Kf3 {[%emt 0:02:11]} Ne6 {[%emt 0:00:11]} 43. Re5 {[%emt 0:01:08]} Ra3+ {[%emt 0:01:25]} 44. Ke4 {[%emt 0:00:50]} f5+ {[%emt 0:00:27]} 0-1

[Event "Kragero Resort Chess A 2019"]
[Site "Kragero"]
[Date "2019.02.20"]
[Round "1.17"]
[White "Kaasen, Tor Fredrik"]
[Black "Shehzad, Shazil"]
[Result "1-0"]
[ECO "B42"]
[WhiteElo "2387"]
[BlackElo "1959"]
[Annotator "NA"]
[PlyCount "69"]
[EventDate "2019.02.20"]
[EventType "swiss"]
[EventCountry "NOR"]
[SourceTitle "playchess.com"]
[Source "ChessBase"]
[SourceQuality "1"]
[TimeControl "5400+30"]

1. e4 {[%emt 0:00:00]} c5 {[%emt 0:00:00]} 2. Nf3 {[%emt 0:00:02]} e6 {[%emt 0:00:00]} 3. d4 {[%emt 0:00:12]} cxd4 {[%emt 0:00:00]} 4. Nxd4 {[%emt 0:00:07]} a6 {[%emt 0:00:00]} 5. Bd3 {[%emt 0:00:08]} Ne7 {[%emt 0:00:00]} 6. O-O {[%emt 0:01:30]} Nec6 {[%emt 0:00:58]} 7. Be3 {[%emt 0:02:11]} Nxd4 {[%emt 0:01:02]} 8. Bxd4 {[%emt 0:01:14]} Nc6 {[%emt 0:00:16]} 9. Be3 {[%emt 0:00:09]} Be7 {[%emt 0:01:04]} 10. c4 {[%emt 0:00:19]} Qc7 {[%emt 0:00:51]} 11. Nc3 {[%emt 0:03:29]} Ne5 {[%emt 0:04:53]} 12. Na4 {[%emt 0:05:25]} Nxd3 {[%emt 0:01:23]} 13. Qxd3 {[%emt 0:00:25]} O-O {[%emt 0:04:49]} 14. Rac1 {[%emt 0:01:00]} d6 {[%emt 0:01:18]} 15. Nb6 {[%emt 0:04:56]} Rb8 {[%emt 0:00:04]} 16. Rfd1 {[%emt 0:03:59]} Rd8 {[%emt 0:01:47]} 17. b4 {[%emt 0:01:21]} Bd7 {[%emt 0:03:25]} 18. a4 {[%emt 0:01:14]} Be8 {[%emt 0:11:29]} 19. a5 {[%emt 0:00:57]} h6 {[%emt 0:02:44]} 20. h3 {[%emt 0:02:35]} Qc6 {[%emt 0:02:03]} 21. Bf4 {[%emt 0:03:31]} Bg5 {[%emt 0:04:17]} 22. Bxg5 {[%emt 0:02:56]} hxg5 {[%emt 0:00:13]} 23. Rc2 {[%emt 0:00:25]} f6 {[%emt 0:01:29]} 24. Rcd2 {[%emt 0:00:47]} Bg6 {[%emt 0:00:48]} 25. f3 {[%emt 0:00:19]} Kf7 {[%emt 0:02:12]} 26. Qe3 {[%emt 0:01:28]} Ke7 {[%emt 0:01:38]} 27. Rd4 {[%emt 0:00:36]} Bf7 {[%emt 0:02:29]} 28. Qd2 {[%emt 0:02:51]} Qc7 {[%emt 0:01:27]} 29. Qf2 {[%emt 0:05:42]} Qc6 {[%emt 0:03:47]} 30. Qg3 {[%emt 0:00:54]} Bg8 {[%emt 0:00:55]} 31. h4 {[%emt 0:03:21]} gxh4 {[%emt 0:01:03]} 32. Qxg7+ {[%emt 0:00:34]} Bf7 {[%emt 0:00:03]} 33. c5 {[%emt 0:00:09]} Rg8 {[%emt 0:01:45]} 34. cxd6+ {[%emt 0:00:11]} Ke8 {[%emt 0:00:07]} 35. Qxf6 {[%emt 0:00:20]} 1-0